fUSD/lending_fUSD_20240714
["ID","MTS","AMOUNT","RATE_DAILY","PERIOD"]
[331983124,1720921468107,150.0,8.219e-05,2]
[331983125,1720921468128,150.0,8.219e-05,2]
[331983126,1720921468148,150.0,8.219e-05,2]
[331983127,1720921612881,150.0,9e-05,2]
[331983128,1720921612903,150.0,9e-05,2]
[331983129,1720921613067,150.0,9e-05,2]
[331983130,1720921613089,150.0,9e-05,2]
[331983131,1720921613112,150.0,9e-05,2]
[331983132,1720921613134,208.26142412,9e-05,2]
[331983133,1720921613155,141.73857588,9e-05,2]
[331983144,1720921647108,150.0,9e-05,2]
[331983145,1720921647136,150.0,9e-05,2]
[331983146,1720921647164,150.0,9e-05,2]
[331983147,1720921647192,150.0,9e-05,2]
[331983148,1720921647221,150.0,9e-05,2]
[331983149,1720921647248,150.0,9e-05,2]
[331983150,1720921647277,150.0,9e-05,2]
[331983151,1720921647306,150.0,9e-05,2]
[331983152,1720921647335,150.0,9e-05,2]
[331983153,1720921647362,150.0,9e-05,2]
[331983154,1720921688678,150.0,9e-05,2]
[331983155,1720921688701,150.0,9e-05,2]
[331983156,1720921688724,150.0,9e-05,2]
[331983157,1720921688746,139.9031083,9e-05,2]
[331983158,1720921709205,2003.38710755,9e-05,2]
[331983194,1720921773806,150.0,9e-05,2]
[331983195,1720921773828,126.19953925,9e-05,2]
[331983199,1720921832067,-446.17024212,9.794e-05,2]
[331983200,1720921832078,-441.27778463,9.794e-05,2]
[331983201,1720921832088,-414.96820624,9.794e-05,2]
[331983202,1720921832100,-347.40099992,9.794e-05,2]
[331983203,1720921832199,-577.50775,9.794e-05,2]
[331983204,1720921832211,-1717.23501709,9.794e-05,2]
[331983205,1720921832221,-233.51,9.794e-05,2]
[331983206,1720921832231,-250.0,9.826e-05,2]
[331983207,1720921832240,-500.0,9.916e-05,2]
[331983208,1720921832250,-348.39,9.932e-05,2]
[331983209,1720921832259,-176.35,9.958e-05,2]
[331983210,1720921832269,-300.0,9.998e-05,2]
[331983211,1720921832278,-1387.49,9.999e-05,2]
[331983212,1720921832288,-906.05368223,0.0001,2]
[331983213,1720921832298,-1000.0,0.00010071,2]
[331983214,1720921832307,-841.1,0.00010078,2]
[331983215,1720921832316,-69.42823213,0.00010134,2]
[331983216,1720921832350,-85.789025,0.00010134,2]
[331983217,1720921832360,-156.42988143,0.00010134,2]
[331983218,1720921832370,-263.21206733,0.00010134,2]
[331983219,1720921832491,-268.67090471,0.00010134,2]
[331983220,1720921832500,-270.20909529,0.00010134,2]
[331983221,1720921832511,-60.69569227,0.00010134,2]
[331983222,1720921832521,-424.66,0.00010178,2]
[331983223,1720921832530,-555.04,0.000102,2]
[331983224,1720921832539,-16.90430773,0.00010207,2]
[331983225,1720921832551,-137.47569227,0.00010207,2]
[331983226,1720921832560,-429.0764211,0.00010207,2]
[331983227,1720921832571,-70.9135789,0.00010207,2]
[331983228,1720921832580,-795.8492478,0.00010242,2]
[331983246,1720921838034,-4729.1507522,0.00010242,2]
[331983247,1720921838043,-710.24,0.00010278,2]
[331983248,1720921838051,-355.12,0.00010278,2]
[331983249,1720921838060,-608.86,0.00010481,2]
[331983250,1720921838070,-424.89,0.00010712,2]
[331983251,1720921838079,-529.13,0.00010712,2]
[331983252,1720921838088,-150.0,0.00010712,2]
[331983253,1720921838097,-165.07,0.00010712,2]
[331983254,1720921838107,-150.0,0.00010712,2]
[331983255,1720921838116,-150.0,0.00010712,2]
[331983256,1720921838126,-150.0,0.00010712,2]
[331983257,1720921838136,-355.29,0.00010712,2]
[331983258,1720921838146,-358.85,0.00010712,2]
[331983259,1720921838155,-151.16,0.00010712,2]
[331983260,1720921838165,-166.64,0.00010712,2]
[331983261,1720921838174,-151.37,0.00010712,2]
[331983262,1720921838184,-429.01,0.00010712,2]
[331983263,1720921838193,-150.62,0.00010712,2]
[331983264,1720921838203,-150.33,0.00010712,2]
[331983265,1720921838214,-534.2,0.00010712,2]
[331983266,1720921838223,-529.13,0.00010712,2]
[331983267,1720921838233,-392.4386208,0.00010712,2]
[331983297,1720921838618,-32.4513792,0.00010712,2]
[331983299,1720921838628,-150.0,0.00010712,2]
[331983301,1720921838639,-81.1392354,0.00010712,2]
[331983303,1720921838652,-68.8607646,0.00010712,2]
[331983305,1720921838663,-150.0,0.00010712,2]
[331983307,1720921838675,-355.29,0.00010712,2]
[331983309,1720921838686,-165.07,0.00010712,2]
[331983311,1720921838695,-529.13,0.00010712,2]
[331983313,1720921838703,-150.0,0.00010712,2]
[331983315,1720921838714,-150.0,0.00010712,2]
[331983317,1720921838724,-424.89,0.00010712,2]
[331983319,1720921838734,-150.0,0.00010712,2]
[331983320,1720921838743,-527.29,0.00010712,2]
[331983321,1720921838754,-20.98226051,0.00010712,2]
[331983322,1720921838766,-129.01773949,0.00010712,2]
[331983323,1720921838777,-150.0,0.00010712,2]
[331983324,1720921838787,-165.07,0.00010712,2]
[331983325,1720921838796,-355.29,0.00010712,2]
[331983326,1720921838806,-150.0,0.00010712,2]
[331983327,1720921838815,-150.0,0.00010712,2]
[331983329,1720921838826,-709.74,0.00010712,2]
[331983331,1720921838835,-63.53911901,0.00010712,2]
[331983345,1720921838961,-361.35088099,0.00010712,2]
[331983347,1720921838970,-165.07,0.00010712,2]
[331983349,1720921838979,-83.67211314,0.00010712,2]
[331983351,1720921838992,-341.21788686,0.00010712,2]
[331983367,1720921839141,-51.30549437,0.00010712,2]
[331983370,1720921839153,-98.69450563,0.00010712,2]
[331983372,1720921839164,-165.07,0.00010712,2]
[331983374,1720921839174,-150.0,0.00010712,2]
[331983376,1720921839183,-165.07,0.00010712,2]
[331983378,1720921839193,-424.89,0.00010712,2]
[331983380,1720921839202,-150.0,0.00010712,2]
[331983382,1720921839211,-150.0,0.00010712,2]
[331983384,1720921839220,-424.53,0.00010712,2]
[331983386,1720921839229,-150.0,0.00010712,2]
[331983388,1720921839239,-164.89,0.00010712,2]
[331983390,1720921839248,-150.0,0.00010712,2]
[331983392,1720921839259,-151.37752038,0.00010877,2]
[331983394,1720921839270,-2105.04997882,0.00010877,2]
[331983396,1720921839279,-231.22455922,0.00010878,2]
[331983492,1720921840188,-828.35681994,0.00010878,2]
[331983494,1720921840199,-536.5705,0.000109,2]
[331983496,1720921840209,-28600.0133,0.000109,2]
[331983498,1720921840220,-6195.3898,0.000109,2]
[331983502,1720921840230,-424.89,0.000109,2]
[331983505,1720921840239,-150.0,0.000109,2]
[331983508,1720921840249,-529.13,0.000109,2]
[331983511,1720921840259,-300.0,0.000109,2]
[331983514,1720921840272,-165.07,0.000109,2]
[331983516,1720921840281,-150.0,0.000109,2]
[331983518,1720921840291,-355.29,0.000109,2]
[331983519,1720921840300,-846.01,0.000109,2]
[331983520,1720921840310,-150.0,0.000109,2]
[331983521,1720921840320,-150.0,0.000109,2]
[331983522,1720921840329,-10000.0,0.00010983,2]
[331983523,1720921840339,-209.1831,0.00010993,2]
[331983525,1720921840349,-420.0,0.00010998,2]
[331983527,1720921840358,-1000.0,0.00011,2]
[331983529,1720921840367,-641.81,0.00011,2]
[331983531,1720921840377,-157.10586997,0.00011,2]
[331983533,1720921840387,-3307.8237,0.00011,2]
[331983535,1720921840397,-1000.0,0.00011,2]
[331983537,1720921840407,-500.0,0.00011012,2]
[331983539,1720921840418,-500.0,0.00011012,2]
[331983541,1720921840427,-500.0,0.00011012,2]
[331983543,1720921840437,-221.51,0.00011014,3]
[331983545,1720921840447,-1830.0,0.0001102,2]
[331983547,1720921840457,-1662.162,0.0001102,2]
[331983549,1720921840467,-362.626,0.0001102,2]
[331983551,1720921840477,-1254.657,0.0001102,2]
[331983553,1720921840487,-620.0,0.0001102,2]
[331983555,1720921840497,-486.574,0.0001102,2]
[331983557,1720921840507,-451.382,0.0001102,2]
[331983559,1720921840516,-223.67,0.0001102,2]
[331983561,1720921840530,-809.0,0.0001102,2]
[331983563,1720921840540,-151.055,0.0001102,2]
[331983565,1720921840549,-1369.571,0.0001102,2]
[331983567,1720921840559,-2379.0,0.0001102,2]
[331983569,1720921840569,-549.0,0.0001102,2]
[331983571,1720921840578,-3278.0,0.0001102,2]
[331983573,1720921840588,-1991.0,0.0001102,2]
[331983575,1720921840598,-190.689,0.0001102,2]
[331983577,1720921840607,-1201.329,0.0001102,2]
[331983579,1720921840617,-38358.68,0.0001102,2]
[331983581,1720921840626,-1669.438,0.0001102,2]
[331983582,1720921840636,-5184.0,0.0001102,2]
[331983584,1720921840645,-5828.183,0.0001102,2]
[331983586,1720921840655,-211.0,0.0001102,2]
[331983588,1720921840667,-1072.0,0.0001102,2]
[331983591,1720921840678,-150.0,0.0001102,2]
[331983593,1720921840688,-192.15134602,0.0001109,2]
[331983595,1720921840700,-1385.2485583,0.00011093,2]
[331983597,1720921840711,-17470.326944,0.00011093,2]
[331983599,1720921840721,-2222.8334584,0.00011093,2]
[331983601,1720921840732,-3683.72501448,0.00011097,2]
[331983603,1720921840742,-519.59279552,0.00011098,2]
[331983605,1720921840755,-691.82126077,0.00011098,2]
[331983607,1720921840766,-281.33304869,0.00011098,2]
[331983609,1720921840778,-306.35047687,0.00011098,2]
[331983611,1720921840787,-599.34112366,0.00011098,2]
[331983613,1720921840797,-526.45374133,0.00011098,2]
[331983615,1720921840807,-543.0,0.000111,2]
[331983617,1720921840818,-684869.14986792,0.000111,2]
[331983619,1720921840830,-293973.89871846,0.000111,2]
[331983621,1720921840843,-522.809,0.000111,2]
[331983624,1720921840854,-34591.00729555,0.000111,2]
[331983626,1720921840866,-1408.02620954,0.000111,2]
[331983628,1720921840877,-568.13080662,0.000111,2]
[331983631,1720921840899,-3794.6208046,0.000111,2]
[331983635,1720921840926,-652.82532851,0.000111,2]
[331983637,1720921840938,-368.99557736,0.000111,2]
[331983640,1720921840949,-14901.011465,0.000111,2]
[331983642,1720921840960,-7959.52481521,0.000111,2]
[331983644,1720921840972,-5807.43776704,0.000111,2]
[331983646,1720921840983,-18957.30321431,0.000111,2]
[331983650,1720921841015,-5675.0,0.000111,2]
[331983689,1720921841384,-278.90148228,0.00010983,2]
[331983691,1720921841396,-9721.09851772,0.00010983,2]
[331983693,1720921841406,-117947.72040891,0.000111,2]
[331983695,1720921841418,-1421.43596533,0.000111,2]
[331983882,1720921843083,-570.615,0.00010983,2]
[331983886,1720921843094,-1120.0670913,0.00010983,2]
[331983887,1720921843104,-34669.03278129,0.000111,2]
[331984003,1720921844292,-625.25758474,0.000111,2]
[331984005,1720921844304,-6978.5,0.000111,2]
[331984008,1720921844316,-572.36779435,0.000111,2]
[331984012,1720921844347,-356.36041702,0.000111,2]
[331984014,1720921844359,-570.0,0.000111,2]
[331984016,1720921844370,-4919.49223107,0.000111,2]
[331984236,1720921846535,-150.104,0.0001102,2]
[331984238,1720921846545,-15301.23142455,0.000111,2]
[331984240,1720921846557,-286.26028453,0.000111,2]
[331984244,1720921846589,-1232.34172291,0.000111,2]
[331984246,1720921846599,-1023.445605,0.000111,2]
[331984248,1720921846611,-490.59496201,0.000111,2]
[331984251,1720921846622,-74024.90584167,0.000111,2]
[331984254,1720921846643,-300.0,0.000111,2]
[331984256,1720921846654,-4353.18489459,0.000111,2]
[331984258,1720921846666,-5719.9,0.000111,2]
[331984260,1720921846678,-730.0,0.000111,2]
[331985383,1720921866348,215.0,0.000166,30]
[331985384,1720921872142,150.0,8.97e-05,2]
[331985385,1720921872165,150.0,8.97e-05,2]
[331985386,1720921872187,150.0,8.97e-05,2]
[331985387,1720921872211,150.0,8.97e-05,2]
[331985388,1720921872234,11.55,8.97e-05,2]
[331985391,1720921996465,215.0,0.000161,28]
[331985392,1720921997430,150.0,8.897e-05,2]
[331985393,1720921997451,150.0,8.897e-05,2]
[331985394,1720921997471,150.0,8.897e-05,2]
[331985395,1720921997491,50.0,8.897e-05,2]
[331985396,1720921997824,100.0,8.898e-05,2]
[331985397,1720921997848,150.0,8.898e-05,2]
[331985398,1720921997870,150.0,8.898e-05,2]
[331985399,1720921997891,100.0,8.898e-05,2]
[331985400,1720922050226,150.0,8.898e-05,2]
[331985401,1720922050249,150.0,8.898e-05,2]
[331985402,1720922050272,150.0,8.898e-05,2]
[331985403,1720922050295,150.0,8.898e-05,2]
[331985405,1720922116992,302.08001666,8.898e-05,4]
[331985409,1720922438649,150.0,8.219e-05,2]
[331985410,1720922438669,150.0,8.219e-05,2]
[331985411,1720922438690,150.0,8.219e-05,2]
[331985412,1720922438714,150.0,8.219e-05,2]
[331985413,1720922438737,31.18,8.219e-05,2]
[331985414,1720922507643,600.0,8.219e-05,2]
[331985417,1720922898502,25000.0,0.00025,60]
[331985430,1720922972537,150.0,8.219e-05,2]
[331985431,1720922972562,150.0,8.219e-05,2]
[331985432,1720922972583,150.0,8.219e-05,2]
[331985433,1720922972604,149.62,8.219e-05,2]
[331985460,1720923032299,-250.22355,9.962e-05,2]
[331985461,1720923032310,-250.0,9.99e-05,2]
[331985462,1720923032319,-160.143072,0.0001,2]
[331985463,1720923032329,-200.17884,0.0001,2]
[331985464,1720923032339,-135.32999676,0.00010011,2]
[331985465,1720923032351,-19.05000324,0.00010011,2]
[331985466,1720923032361,-317.16999676,0.00010011,2]
[331985467,1720923032519,-275.3094893,0.00010011,2]
[331985470,1720923038272,-688.39051394,0.00010011,2]
[331985471,1720923038284,-200.0,0.00010033,2]
[331985472,1720923038294,-282.01,0.00010087,2]
[331985473,1720923038304,-1972.57,0.00010091,2]
[331985474,1720923038314,-522.88427866,0.00010133,2]
[331985475,1720923038325,-477.11572134,0.00010133,2]
[331985476,1720923038335,-184.29,0.00010307,2]
[331985477,1720923038344,-58.13751752,0.00010315,2]
[331985484,1720923038576,-543.64890068,0.00010315,2]
[331985486,1720923038585,-599.62,0.00010474,2]
[331985488,1720923038595,-2717.36637793,0.00010482,2]
[331985490,1720923038606,-1381.87362207,0.00010482,2]
[331985492,1720923038617,-449.0,0.00010732,2]
[331985494,1720923038626,-48.91711511,0.00010732,2]
[331985503,1720923038716,-435.09366157,0.00010732,2]
[331985505,1720923038727,-591.07212981,0.00010732,2]
[331985507,1720923038740,-1303.91709351,0.00010732,2]
[331985509,1720923038750,-504.02743967,0.00010732,2]
[331985512,1720923038761,-748.97256033,0.00010732,2]
[331985513,1720923038770,-150.0,0.00010732,2]
[331985515,1720923038779,-548.791,0.00010732,2]
[331985517,1720923038789,-150.0,0.00010732,2]
[331985519,1720923038798,-1991.0,0.00010732,2]
[331985521,1720923038808,-499.99,0.00010732,2]
[331985523,1720923038818,-3278.0,0.00010732,2]
[331985525,1720923038827,-643.55,0.00010732,2]
[331985527,1720923038836,-7551.16,0.00010732,2]
[331985529,1720923038846,-5184.0,0.00010732,2]
[331985530,1720923038855,-776.488,0.00010732,2]
[331985533,1720923038867,-600.0,0.00010745,2]
[331985535,1720923038877,-155.18991509,0.00010785,2]
[331985537,1720923038886,-379.37344096,0.00010785,2]
[331985539,1720923038896,-300.0,0.000108,2]
[331985541,1720923038905,-6450.63286349,0.00010805,2]
[331985543,1720923038914,-1128.2137496,0.00010877,2]
[331985545,1720923038924,-3293.5165576,0.0001099,2]
[331985546,1720923038932,-1000.0,0.00010993,2]
[331985549,1720923038943,-170.57800227,0.00011,2]
[331985551,1720923038952,-1000.0,0.00011,2]
[331985553,1720923038962,-11334.5415,0.00011,2]
[331985555,1720923038972,-16254.909,0.00011,2]
[331985557,1720923038984,-39942.2578,0.00011,2]
[331985559,1720923038994,-169.24846796,0.00011,2]
[331985561,1720923039004,-992.77018576,0.00011,2]
[331985563,1720923039014,-992.77018575,0.00011,2]
[331985565,1720923039023,-192.3693,0.00011,2]
[331985567,1720923039033,-176.73050565,0.00011,2]
[331985569,1720923039042,-1393.0,0.00011,2]
[331985571,1720923039057,-500.0,0.00011012,2]
[331985573,1720923039066,-500.0,0.00011012,2]
[331985575,1720923039076,-500.0,0.00011012,2]
[331985577,1720923039087,-501.66214151,0.00011012,2]
[331985579,1720923039097,-500.0,0.00011012,2]
[331985581,1720923039107,-1252.0,0.0001102,2]
[331985583,1720923039119,-1830.0,0.0001102,2]
[331985585,1720923039130,-1661.0,0.0001102,2]
[331985588,1720923039139,-620.0,0.0001102,2]
[331985590,1720923039149,-150.0,0.0001102,2]
[331985591,1720923039158,-809.0,0.0001102,2]
[331985593,1720923039168,-444.0,0.0001102,2]
[331985595,1720923039177,-1962.3623497,0.00011097,2]
[331985597,1720923039188,-15131.359963,0.00011097,2]
[331985599,1720923039199,-1933.4226068,0.00011097,2]
[331985601,1720923039208,-215.98933542,0.00011097,2]
[331985604,1720923039218,-9186.39842429,0.00011097,2]
[331985606,1720923039229,-200.97955536,0.00011097,2]
[331985608,1720923039239,-159.99293787,0.00011097,2]
[331985610,1720923039249,-691.82126077,0.00011098,2]
[331985612,1720923039259,-209.31262444,0.00011098,2]
[331985614,1720923039270,-599.34112366,0.00011098,2]
[331985615,1720923039279,-155.72450141,0.00011098,2]
[331985617,1720923039289,-308.64318668,0.00011098,2]
[331985620,1720923039299,-1247.78250732,0.00011099,2]
[331985622,1720923039311,-549.0,0.000111,2]
[331985624,1720923039323,-266303.16994429,0.000111,2]
[331985661,1720923039663,300.0,8.219e-05,2]
[331985720,1720923040329,-158.1412836,9.962e-05,2]
[331985723,1720923040339,-2840.16445543,0.00010805,2]
[331986036,1720923043606,-41.06668881,0.00010805,2]
[331986038,1720923043616,-251.67011954,0.000111,2]
[331986135,1720923044647,-26596.94614259,0.000111,2]
[331986137,1720923044659,-311.6,0.000111,2]
[331986144,1720923044717,-551.65203341,0.000111,2]
[331986273,1720923046469,-1000.18527722,0.000111,2]
[331986275,1720923046480,-5851.96452514,0.000111,2]
[331986277,1720923046492,-4461.07002429,0.000111,2]
[331986280,1720923046503,-5650.6,0.000111,2]
[331986282,1720923046514,-527.95118206,0.000111,2]
[331986284,1720923046527,-5491.0,0.000111,2]
[331986286,1720923046539,-391.02032553,0.000111,2]
[331986288,1720923046553,-1433.25,0.000111,2]
[331986291,1720923046566,-97616.63009427,0.000111,2]
[331986307,1720923046711,-13840.50615542,0.000111,2]
[331986309,1720923046722,-4107.44016929,0.000111,2]
[331986311,1720923046733,-47635.84688,0.000111,2]
[331986572,1720923054658,150.0,8.219e-05,2]
[331986573,1720923054679,150.0,8.219e-05,2]
[331986586,1720923100074,151.071411,0.00025,67]
[331986587,1720923104900,151.071411,0.00025,68]
[331986588,1720923109616,151.071411,0.00025,69]
[331986590,1720923199256,500.0,8.153e-05,2]
[331986603,1720923519895,574.71,8.219e-05,2]
[331986612,1720923921518,450.88395557,9e-05,2]
[331986629,1720924060698,500.0,0.00025,60]
[331986632,1720924117862,150.0,8.219e-05,2]
[331986633,1720924117886,150.0,8.219e-05,2]
[331986634,1720924117911,245.97,8.219e-05,2]
[331986678,1720924232418,-177.09983323,9.991e-05,2]
[331986679,1720924232429,-163.6462017,0.0001,2]
[331986680,1720924232439,-160.143072,0.0001,2]
[331986682,1720924232450,-1000.0,0.0001006,2]
[331986684,1720924232459,-184.29,0.00010091,2]
[331986686,1720924232469,-178.01,0.00010178,2]
[331986688,1720924232478,-250.0,0.00010215,2]
[331986690,1720924232489,-700.0,0.000104,3]
[331986692,1720924232500,-545.97,0.00010479,2]
[331986694,1720924232509,-1500.0,0.000105,3]
[331986695,1720924232519,-2200.0,0.000106,3]
[331986696,1720924232531,-2448.03859307,0.000107,3]
[331986697,1720924232544,-551.96140693,0.000107,3]
[331986698,1720924232555,-2514.03219696,0.000108,3]
[331986699,1720924232745,-1285.96780304,0.000108,3]
[331986700,1720924232755,-564.1068748,0.00010877,2]
[331986701,1720924232765,-1330.70389434,0.00010878,2]
[331986702,1720924232774,-700.0,0.000109,3]
[331986703,1720924232783,-3000.0,0.0001099,2]
[331986704,1720924232793,-4537.6554,0.00010997,2]
[331986705,1720924232802,-174.01269186,0.00011,2]
[331986706,1720924232811,-1000.0,0.00011,2]
[331986707,1720924232820,-304.7835,0.00011,2]
[331986708,1720924232829,-4250.81176873,0.00011,2]
[331986710,1720924239098,-1500.0,0.00011,2]
[331986711,1720924239290,-1095.36771121,0.00011,2]
[331986712,1720924239302,-1240.66182006,0.00011,2]
[331986713,1720924239312,-600.09809144,0.00011,2]
[331986714,1720924239323,-2636.27005316,0.00011,2]
[331986715,1720924239332,-190.65336571,0.00011,2]
[331986716,1720924239341,-227.9490803,0.00011,2]
[331986717,1720924239351,-1000.0,0.00011,2]
[331986718,1720924239360,-500.0,0.00011012,2]
[331986719,1720924239370,-500.0,0.00011012,2]
[331986720,1720924239380,-500.0,0.00011012,2]
[331986721,1720924239389,-500.0,0.00011012,2]
[331986722,1720924239402,-1257.471,0.0001102,2]
[331986723,1720924239411,-1474.775,0.0001102,2]
[331986724,1720924239421,-282.888,0.0001102,2]
[331986725,1720924239431,-550.751,0.0001102,2]
[331986726,1720924239442,-2281.55221548,0.0001102,2]
[331986727,1720924239454,-996.44778452,0.0001102,2]
[331986728,1720924239464,-633.51813125,0.0001102,2]
[331986729,1720924239477,-1357.48186875,0.0001102,2]
[331986730,1720924239487,-1252.0,0.0001102,2]
[331986731,1720924239496,-1553.06998986,0.0001102,2]
[331986821,1720924240456,-107.93001014,0.0001102,2]
[331986823,1720924240466,-1268.655,0.0001102,2]
[331986825,1720924240476,-734.66969994,0.0001102,2]
[331986841,1720924240627,-253.94099997,0.000105,2]
[331986843,1720924240640,-501.80350003,0.000105,2]
[331986845,1720924240650,-936.99130006,0.0001102,2]
[331986847,1720924240660,-6899.62322811,0.0001102,2]
[331986859,1720924240769,-21307.34377189,0.0001102,2]
[331986861,1720924240779,-445.854,0.0001102,2]
[331986863,1720924240789,-26552.1525969,0.00011097,2]
[331986865,1720924240799,-2048.388219,0.00011097,2]
[331986867,1720924240808,-5636.20811308,0.00011098,2]
[331986869,1720924240818,-211.14361124,0.00011098,2]
[331986871,1720924240827,-599.34112366,0.00011098,2]
[331986873,1720924240838,-160.143072,0.00011098,2]
[331986875,1720924240847,-200.17884,0.00011098,2]
[331986876,1720924240857,-626.55837701,0.00011098,2]
[331986878,1720924240866,-1086.40291788,0.00011099,3]
[331986880,1720924240876,-1086.40291788,0.00011099,3]
[331986882,1720924240885,-1086.40291788,0.00011099,3]
[331986884,1720924240895,-1616.92598092,0.00011099,2]
[331986886,1720924240905,-1081.72270171,0.00011099,3]
[331986888,1720924240914,-543.0,0.000111,2]
[331986890,1720924240924,-42536.69610582,0.000111,2]
[331986892,1720924240936,-302.85004585,0.000111,2]
[331986894,1720924240948,-1595.4278427,0.000111,2]
[331986899,1720924240984,-14662.08457378,0.000111,2]
[331987207,1720924244274,-450.647,0.0001102,2]
[331987211,1720924244285,-3136.2433723,0.000111,2]
[331987255,1720924244479,-27566.89959564,0.000111,2]
[331987285,1720924244634,-7387.37557631,0.000111,2]
[331987475,1720924246543,-809.0,0.0001102,2]
[331987478,1720924246557,-1994.90825883,0.000111,2]
[331987495,1720924246715,-1540.81445953,0.000111,2]
[331987497,1720924246726,-532.224,0.000111,2]
[331988102,1720924756662,313.73119117,0.00025,60]
[331988103,1720924796447,150.0,8.253e-05,2]
[331988104,1720924796470,150.0,8.253e-05,2]
[331988105,1720924796491,150.0,8.253e-05,2]
[331988106,1720924796513,76.52,8.253e-05,2]
[331988133,1720925378044,523.27,8.219e-05,2]
[331988139,1720925431793,-600.0,9.916e-05,2]
[331988140,1720925431803,-293.88077685,9.932e-05,2]
[331988141,1720925431816,-463.7839458,9.932e-05,2]
[331988142,1720925431826,-337.21932,9.932e-05,2]
[331988143,1720925432030,-300.54508723,9.932e-05,2]
[331988144,1720925432041,-2017.93517012,9.932e-05,2]
[331988145,1720925432051,-250.0,9.985e-05,2]
[331988146,1720925432060,-250.0,9.99e-05,2]
[331988147,1720925432070,-300.0,0.0001003,2]
[331988148,1720925432079,-1365.74499193,0.00010031,2]
[331988163,1720925437875,-2125.84019675,0.00010031,2]
[331988164,1720925437887,-597.03683004,0.00010031,2]
[331988165,1720925437899,-2897.58798128,0.00010031,2]
[331988166,1720925437909,-178.01,0.00010031,2]
[331988167,1720925437918,-150.0,0.00010082,2]
[331988168,1720925437928,-656.27,0.0001009,2]
[331988169,1720925437938,-329.37,0.00010113,2]
[331988170,1720925437948,-1000.0,0.00010179,2]
[331988171,1720925437958,-171.39,0.00010333,2]
[331988172,1720925437968,-1616.11994219,0.00010333,2]
[331988173,1720925437980,-3023.53005781,0.00010333,2]
[331988174,1720925437989,-2266.49,0.00010333,2]
[331988175,1720925438000,-854.45,0.000104,2]
[331988176,1720925438010,-853.51,0.000104,2]
[331988177,1720925438020,-300.0,0.000104,2]
[331988178,1720925438030,-321.99,0.000104,2]
[331988179,1720925438040,-416.59,0.000104,2]
[331988180,1720925438051,-164.99,0.000104,2]
[331988181,1720925438060,-523.27,0.00010476,2]
[331988182,1720925438070,-559.36890894,0.00010522,2]
[331988183,1720925438082,-649.3947131,0.00010522,2]
[331988815,1720925444124,-464.02185373,0.00010453,2]
[331988817,1720925444136,-1438.89590152,0.00010453,2]
[331988825,1720925444203,-1553.43,0.00010453,2]
[331989012,1720925445828,-1087.15276736,0.00010453,2]
[331989017,1720925445845,-5484.31947739,0.00010453,2]
[331989022,1720925445862,-781.91637796,0.00010522,2]
[331989025,1720925445877,-586.53552664,0.00010642,2]
[331989030,1720925445892,-4365.0,0.00010663,2]
[331989033,1720925445906,-600.0,0.00010738,2]
[331989037,1720925445922,-282.0534374,0.00010877,2]
[331989040,1720925445937,-3000.0,0.0001099,2]
[331989042,1720925445951,-613.825,0.00011,2]
[331989045,1720925445965,-1000.0,0.00011,2]
[331989047,1720925445979,-174.87136426,0.00011,2]
[331989049,1720925445992,-1005.0,0.00011,2]
[331989052,1720925446005,-151.0866,0.00011,2]